[Event "*** Titled Tuesday Blitz"]
[Site "Chess.com"]
[Date "2020.05.26"]
[Round "2"]
[White "kuba2006"]
[Black "CMS13"]
[Result "1-0"]
[WhiteElo "2421"]
[BlackElo "2188"]
[TimeControl "180+1"]
[EndTime "10:18:08 PDT"]
[Termination "kuba2006 won on time"]

1. e4 {[%clk 0:03:00.9]} 1... e5 {[%clk 0:02:54.4]} 2. Nf3 {[%clk 0:02:59.7]}
2... Nc6 {[%clk 0:02:54]} 3. Nc3 {[%clk 0:02:59.3]} 3... Nf6 {[%clk 0:02:53.9]}
4. a3 {[%clk 0:02:59.2]} 4... Bc5 {[%clk 0:02:51.5]} 5. Nxe5 {[%clk 0:02:57.9]}
5... Nxe5 {[%clk 0:02:49.6]} 6. d4 {[%clk 0:02:57.7]} 6... Bd6 {[%clk
0:02:49.8]} 7. f4 {[%clk 0:02:54.8]} 7... Nc6 {[%clk 0:02:45.7]} 8. e5 {[%clk
0:02:54.8]} 8... Be7 {[%clk 0:02:45.6]} 9. d5 {[%clk 0:02:51.5]} 9... Nb8 {[%clk
0:02:27.3]} 10. exf6 {[%clk 0:02:33.7]} 10... Bxf6 {[%clk 0:02:28.2]} 11. Ne4
{[%clk 0:02:30.2]} 11... O-O {[%clk 0:02:24.5]} 12. Bd3 {[%clk 0:02:29.6]} 12...
d6 {[%clk 0:02:16.4]} 13. O-O {[%clk 0:02:27.4]} 13... h6 {[%clk 0:02:07]} 14.
Kh1 {[%clk 0:02:24.6]} 14... Nd7 {[%clk 0:01:53.8]} 15. c4 {[%clk 0:02:12.3]}
15... Be7 {[%clk 0:01:30.8]} 16. b4 {[%clk 0:02:00.7]} 16... Nf6 {[%clk
0:01:30.7]} 17. Bb2 {[%clk 0:02:00.3]} 17... Nxe4 {[%clk 0:01:30.7]} 18. Bxe4
{[%clk 0:02:01.2]} 18... Bf6 {[%clk 0:01:30.3]} 19. Qc2 {[%clk 0:01:59]} 19...
Re8 {[%clk 0:01:20.5]} 20. Rae1 {[%clk 0:01:54.1]} 20... Bxb2 {[%clk 0:01:14.9]}
21. Qxb2 {[%clk 0:01:55]} 21... Bd7 {[%clk 0:01:13.6]} 22. g3 {[%clk 0:01:19.4]}
22... Qc8 {[%clk 0:00:44.7]} 23. f5 {[%clk 0:01:05]} 23... f6 {[%clk 0:00:30.6]}
24. Qc2 {[%clk 0:00:56.8]} 24... Re5 {[%clk 0:00:20.7]} 25. Bd3 {[%clk
0:00:54.8]} 25... Qd8 {[%clk 0:00:18.7]} 26. Rxe5 {[%clk 0:00:53.1]} 26... fxe5
{[%clk 0:00:18]} 27. f6 {[%clk 0:00:34]} 27... Qf8 {[%clk 0:00:15.4]} 28. f7+
{[%clk 0:00:17.1]} 28... Kh8 {[%clk 0:00:15.5]} 29. Bg6 {[%clk 0:00:10.6]} 29...
Qe7 {[%clk 0:00:15.3]} 30. Qe4 {[%clk 0:00:09.8]} 30... Rf8 {[%clk 0:00:14.8]}
31. h4 {[%clk 0:00:05.9]} 31... Bc8 {[%clk 0:00:11.2]} 32. g4 {[%clk 0:00:03.6]}
32... Qd7 {[%clk 0:00:10.3]} 33. Bh5 {[%clk 0:00:01.4]} 33... Qe7 {[%clk
0:00:10.2]} 34. Kg2 {[%clk 0:00:01.5]} 34... Qxh4 {[%clk 0:00:09.9]} 35. Qg6
{[%clk 0:00:01.5]} 35... Qe7 {[%clk 0:00:08.5]} 36. Rh1 {[%clk 0:00:01.6]} 36...
Qf6 {[%clk 0:00:03.3]} 37. Qxf6 {[%clk 0:00:01.3]} 37... gxf6 {[%clk 0:00:03.4]}
38. Rf1 {[%clk 0:00:01.4]} 38... Kg7 {[%clk 0:00:03.7]} 39. Kf2 {[%clk
0:00:01.5]} 39... Bd7 {[%clk 0:00:03.4]} 40. Kf3 {[%clk 0:00:01.6]} 40... c6
{[%clk 0:00:02.9]} 41. Ke4 {[%clk 0:00:01.9]} 41... cxd5+ {[%clk 0:00:02]} 42.
Kxd5 {[%clk 0:00:02.8]} 1-0

[Event "*** Titled Tuesday Blitz"]
[Site "Chess.com"]
[Date "2020.05.26"]
[Round "2"]
[White "Shankovskyi"]
[Black "Saloni1299"]
[Result "1/2-1/2"]
[WhiteElo "2531"]
[BlackElo "2293"]
[TimeControl "180+1"]
[EndTime "10:18:09 PDT"]
[Termination "Game drawn by repetition"]

1. e4 {[%clk 0:03:00.9]} 1... e6 {[%clk 0:02:59.6]} 2. d4 {[%clk 0:03:00.4]}
2... d5 {[%clk 0:02:57]} 3. Nd2 {[%clk 0:03:00.9]} 3... Nf6 {[%clk 0:02:56.5]}
4. e5 {[%clk 0:02:59.4]} 4... Nfd7 {[%clk 0:02:55.5]} 5. Ngf3 {[%clk 0:02:59]}
5... c5 {[%clk 0:02:55.9]} 6. c3 {[%clk 0:02:59.3]} 6... Nc6 {[%clk 0:02:56.2]}
7. Bd3 {[%clk 0:02:54.9]} 7... cxd4 {[%clk 0:02:56.2]} 8. cxd4 {[%clk
0:02:55.8]} 8... f6 {[%clk 0:02:56.8]} 9. exf6 {[%clk 0:02:54.3]} 9... Nxf6
{[%clk 0:02:57.7]} 10. O-O {[%clk 0:02:53.6]} 10... Bd6 {[%clk 0:02:58.3]} 11.
Re1 {[%clk 0:02:51]} 11... Qc7 {[%clk 0:02:56.2]} 12. Nf1 {[%clk 0:02:45.7]}
12... O-O {[%clk 0:02:55.1]} 13. Bg5 {[%clk 0:02:45]} 13... h6 {[%clk 0:02:24]}
14. Bh4 {[%clk 0:02:42.2]} 14... e5 {[%clk 0:02:22.3]} 15. dxe5 {[%clk
0:02:33.2]} 15... Nxe5 {[%clk 0:02:23.2]} 16. Nxe5 {[%clk 0:02:31.8]} 16... Bxe5
{[%clk 0:02:22.9]} 17. Rc1 {[%clk 0:02:26.2]} 17... Qd6 {[%clk 0:02:23.1]} 18.
Bg3 {[%clk 0:02:26]} 18... Bg4 {[%clk 0:02:13.9]} 19. Qb3 {[%clk 0:02:20.1]}
19... Bxg3 {[%clk 0:02:08]} 20. Nxg3 {[%clk 0:02:21]} 20... Rae8 {[%clk
0:02:05.5]} 21. h3 {[%clk 0:02:15.5]} 21... Bd7 {[%clk 0:02:03.4]} 22. Rxe8
{[%clk 0:01:50.6]} 22... Rxe8 {[%clk 0:02:02.4]} 23. Qxb7 {[%clk 0:01:51.2]}
23... Qf4 {[%clk 0:01:52.3]} 24. Qc7 {[%clk 0:01:37.3]} 24... Re1+ {[%clk
0:01:47.5]} 25. Kh2 {[%clk 0:01:35.9]} 25... Qxf2 {[%clk 0:01:44.2]} 26. Rxe1
{[%clk 0:01:17.8]} 26... Qxe1 {[%clk 0:01:45.1]} 27. Qb8+ {[%clk 0:01:11.3]}
27... Kf7 {[%clk 0:01:41.6]} 28. Qxa7 {[%clk 0:01:11.6]} 28... Qe5 {[%clk
0:01:40.7]} 29. b4 {[%clk 0:01:04.9]} 29... Ke7 {[%clk 0:01:29.5]} 30. Bb5
{[%clk 0:00:49.4]} 30... h5 {[%clk 0:01:27.1]} 31. Qc5+ {[%clk 0:00:36.3]} 31...
Kd8 {[%clk 0:01:20.2]} 32. Qf8+ {[%clk 0:00:30.2]} 32... Kc7 {[%clk 0:01:18.2]}
33. Bxd7 {[%clk 0:00:25.7]} 33... Nxd7 {[%clk 0:01:13.5]} 34. Qf5 {[%clk
0:00:24.1]} 34... Qd6 {[%clk 0:01:05.5]} 35. Qxh5 {[%clk 0:00:23.7]} 35... Nf6
{[%clk 0:01:04.2]} 36. Qg6 {[%clk 0:00:18]} 36... Kb6 {[%clk 0:00:58.4]} 37. a4
{[%clk 0:00:15.2]} 37... Qf4 {[%clk 0:00:54.7]} 38. Qd3 {[%clk 0:00:08]} 38...
Qxb4 {[%clk 0:00:47.2]} 39. Nf5 {[%clk 0:00:07.1]} 39... Qxa4 {[%clk 0:00:46.2]}
40. Nd4 {[%clk 0:00:05.6]} 40... Qc4 {[%clk 0:00:39.9]} 41. Qe3 {[%clk
0:00:05.5]} 41... Qc7+ {[%clk 0:00:37.6]} 42. Kh1 {[%clk 0:00:04.9]} 42... Qc5
{[%clk 0:00:36.3]} 43. Qb3+ {[%clk 0:00:04.6]} 43... Ka7 {[%clk 0:00:31.8]} 44.
Nb5+ {[%clk 0:00:05]} 44... Ka6 {[%clk 0:00:29.9]} 45. Qa4+ {[%clk 0:00:04.1]}
45... Kb6 {[%clk 0:00:29.5]} 46. Nd4 {[%clk 0:00:05]} 46... Qc1+ {[%clk
0:00:26.4]} 47. Kh2 {[%clk 0:00:05.5]} 47... Qf4+ {[%clk 0:00:26.9]} 48. Kg1
{[%clk 0:00:06.1]} 48... Qc1+ {[%clk 0:00:25.5]} 49. Kh2 {[%clk 0:00:06.6]}
49... Qf4+ {[%clk 0:00:25.2]} 50. Kg1 {[%clk 0:00:07.3]} 50... Qc1+ {[%clk
0:00:22]} 51. Kh2 {[%clk 0:00:07.7]} 1/2-1/2

[Event "*** Titled Tuesday Blitz"]
[Site "Chess.com"]
[Date "2020.05.26"]
[Round "2"]
[White "pooh2012"]
[Black "alekschess100"]
[Result "1-0"]
[WhiteElo "2455"]
[BlackElo "2240"]
[TimeControl "180+1"]
[EndTime "10:18:10 PDT"]
[Termination "pooh2012 won by resignation"]

1. e4 {[%clk 0:03:00.9]} 1... c6 {[%clk 0:02:59.6]} 2. Nf3 {[%clk 0:02:59.4]}
2... d5 {[%clk 0:03:00.5]} 3. Nc3 {[%clk 0:02:59.7]} 3... g6 {[%clk 0:02:59.8]}
4. h4 {[%clk 0:02:58]} 4... h5 {[%clk 0:02:58.4]} 5. exd5 {[%clk 0:02:41.2]}
5... cxd5 {[%clk 0:02:57.7]} 6. d4 {[%clk 0:02:41.8]} 6... Bg7 {[%clk
0:02:56.4]} 7. Bf4 {[%clk 0:02:41.6]} 7... Nh6 {[%clk 0:02:55.7]} 8. Qd2 {[%clk
0:02:32.5]} 8... Bg4 {[%clk 0:02:53.1]} 9. Ne5 {[%clk 0:02:28.8]} 9... Be6
{[%clk 0:02:50.2]} 10. Bb5+ {[%clk 0:02:25]} 10... Kf8 {[%clk 0:02:49.4]} 11.
O-O-O {[%clk 0:01:52.7]} 11... a6 {[%clk 0:02:40]} 12. Bd3 {[%clk 0:01:50.9]}
12... Bf5 {[%clk 0:02:40.1]} 13. f3 {[%clk 0:01:44.8]} 13... Nc6 {[%clk
0:02:35.1]} 14. Nxc6 {[%clk 0:01:28.8]} 14... bxc6 {[%clk 0:02:34.3]} 15. Na4
{[%clk 0:01:10.9]} 15... Bxd3 {[%clk 0:02:13.8]} 16. Qxd3 {[%clk 0:01:10.1]}
16... Nf5 {[%clk 0:02:13.5]} 17. c3 {[%clk 0:01:05.1]} 17... Qa5 {[%clk
0:01:57.8]} 18. b3 {[%clk 0:00:51.3]} 18... Kg8 {[%clk 0:01:54.9]} 19. Bg5
{[%clk 0:00:28.3]} 19... e5 {[%clk 0:01:43.8]} 20. g4 {[%clk 0:00:25.1]} 20...
Nd6 {[%clk 0:01:27.7]} 21. dxe5 {[%clk 0:00:22.2]} 21... Bxe5 {[%clk 0:01:26.9]}
22. f4 {[%clk 0:00:22.5]} 22... Bg7 {[%clk 0:01:22]} 23. f5 {[%clk 0:00:22.8]}
23... hxg4 {[%clk 0:01:16.8]} 24. fxg6 {[%clk 0:00:21.9]} 24... Ne4 {[%clk
0:00:54.7]} 25. gxf7+ {[%clk 0:00:20.3]} 25... Kxf7 {[%clk 0:00:49.6]} 26. Rhf1+
{[%clk 0:00:20]} 26... Kg8 {[%clk 0:00:45.8]} 27. Kc2 {[%clk 0:00:16.5]} 27...
Nxg5 {[%clk 0:00:33.1]} 28. hxg5 {[%clk 0:00:15.3]} 28... Rh3 {[%clk 0:00:32.7]}
29. Qg6 {[%clk 0:00:09]} 29... Rxc3+ {[%clk 0:00:27.4]} 30. Kb1 {[%clk
0:00:09.3]} 30... Rf3 {[%clk 0:00:21.4]} 31. Rxf3 {[%clk 0:00:06.9]} 31... gxf3
{[%clk 0:00:20.5]} 32. Rf1 {[%clk 0:00:07.3]} 32... Rf8 {[%clk 0:00:16]} 33.
Qe6+ {[%clk 0:00:06.1]} 33... Rf7 {[%clk 0:00:15.7]} 34. g6 {[%clk 0:00:06.2]}
34... Qc7 {[%clk 0:00:09.5]} 35. gxf7+ {[%clk 0:00:05.8]} 35... Qxf7 {[%clk
0:00:10.4]} 36. Qxf7+ {[%clk 0:00:06]} 36... Kxf7 {[%clk 0:00:11.3]} 37. Rxf3+
{[%clk 0:00:06.7]} 37... Ke6 {[%clk 0:00:12]} 38. Rf1 {[%clk 0:00:07.4]} 38...
Be5 {[%clk 0:00:12.2]} 39. Rc1 {[%clk 0:00:08]} 39... Kd6 {[%clk 0:00:12.8]} 40.
Rc2 {[%clk 0:00:08.4]} 40... d4 {[%clk 0:00:13.1]} 41. Rd2 {[%clk 0:00:07.9]}
41... Kd5 {[%clk 0:00:14]} 42. Kc2 {[%clk 0:00:07.8]} 42... c5 {[%clk
0:00:14.7]} 43. Rd3 {[%clk 0:00:07.8]} 43... Bd6 {[%clk 0:00:15.6]} 44. Nb2
{[%clk 0:00:07.6]} 44... Be5 {[%clk 0:00:16.5]} 45. Nc4 {[%clk 0:00:08.5]} 45...
Bc7 {[%clk 0:00:16.5]} 46. Rd1 {[%clk 0:00:09]} 46... a5 {[%clk 0:00:17.2]} 47.
Kd3 {[%clk 0:00:09.5]} 47... a4 {[%clk 0:00:18]} 48. bxa4 {[%clk 0:00:10]} 48...
Ba5 {[%clk 0:00:17.9]} 49. Nxa5 {[%clk 0:00:09.6]} 49... c4+ {[%clk 0:00:17.3]}
50. Nxc4 {[%clk 0:00:10.5]} 50... Kc5 {[%clk 0:00:17.4]} 51. Rb1 {[%clk
0:00:10.8]} 51... Kc6 {[%clk 0:00:17.1]} 52. Rb5 {[%clk 0:00:10.9]} 52... Kc7
{[%clk 0:00:16.8]} 53. Kxd4 {[%clk 0:00:11.8]} 53... Kc6 {[%clk 0:00:16.8]} 54.
Kc3 {[%clk 0:00:12.7]} 1-0

[Event "*** Titled Tuesday Blitz"]
[Site "Chess.com"]
[Date "2020.05.26"]
[Round "2"]
[White "Cambek64"]
[Black "r31415"]
[Result "1-0"]
[WhiteElo "2287"]
[BlackElo "2475"]
[TimeControl "180+1"]
[EndTime "10:18:11 PDT"]
[Termination "Cambek64 won by checkmate"]

1. e4 {[%clk 0:03:00.9]} 1... c6 {[%clk 0:02:57.6]} 2. d4 {[%clk 0:02:59.7]}
2... d5 {[%clk 0:02:58.5]} 3. e5 {[%clk 0:02:58.7]} 3... Bf5 {[%clk 0:02:58.7]}
4. Nf3 {[%clk 0:02:58.8]} 4... e6 {[%clk 0:02:58.3]} 5. Be2 {[%clk 0:02:58.9]}
5... Ne7 {[%clk 0:02:55.2]} 6. O-O {[%clk 0:02:58.6]} 6... c5 {[%clk 0:02:52.7]}
7. c3 {[%clk 0:02:54.4]} 7... Nd7 {[%clk 0:02:51.4]} 8. Be3 {[%clk 0:02:53]}
8... h6 {[%clk 0:02:49.7]} 9. a4 {[%clk 0:02:52.8]} 9... Qc7 {[%clk 0:02:45.2]}
10. a5 {[%clk 0:02:48.8]} 10... g5 {[%clk 0:02:43.6]} 11. Nbd2 {[%clk
0:02:47.1]} 11... Ng6 {[%clk 0:02:41.7]} 12. a6 {[%clk 0:02:43.8]} 12... b6
{[%clk 0:02:40.5]} 13. Bb5 {[%clk 0:02:43.2]} 13... g4 {[%clk 0:02:34.8]} 14.
Ne1 {[%clk 0:02:41.7]} 14... h5 {[%clk 0:02:29.4]} 15. Qa4 {[%clk 0:02:41.6]}
15... Rd8 {[%clk 0:02:08.6]} 16. Nd3 {[%clk 0:02:31.7]} 16... c4 {[%clk
0:01:55]} 17. Nb4 {[%clk 0:02:30.1]} 17... Bxb4 {[%clk 0:01:47.3]} 18. Qxb4
{[%clk 0:02:29.6]} 18... f6 {[%clk 0:01:20.1]} 19. exf6 {[%clk 0:02:26.1]} 19...
Kf7 {[%clk 0:01:19.9]} 20. Bg5 {[%clk 0:01:48.1]} 20... Nxf6 {[%clk 0:01:18.8]}
21. Bxf6 {[%clk 0:01:43.9]} 21... Kxf6 {[%clk 0:01:18.8]} 22. f4 {[%clk
0:01:29.1]} 22... h4 {[%clk 0:01:13.1]} 23. Rae1 {[%clk 0:01:25.9]} 23... Bd3
{[%clk 0:01:09.9]} 24. Rf2 {[%clk 0:01:23.3]} 24... g3 {[%clk 0:01:01.5]} 25.
Rf3 {[%clk 0:01:22.3]} 25... gxh2+ {[%clk 0:00:53.4]} 26. Kh1 {[%clk 0:01:14.3]}
26... Nxf4 {[%clk 0:00:49.2]} 27. b3 {[%clk 0:01:07]} 27... Rhg8 {[%clk
0:00:47.2]} 28. bxc4 {[%clk 0:00:48.1]} 28... Rxg2 {[%clk 0:00:46.9]} 29. Rxd3
{[%clk 0:00:46.6]} 29... Nxd3 {[%clk 0:00:41.4]} 30. Rf1+ {[%clk 0:00:39.7]}
30... Rf2 {[%clk 0:00:39.5]} 31. cxd5 {[%clk 0:00:39.3]} 31... Qg3 {[%clk
0:00:34.3]} 32. Ne4+ {[%clk 0:00:38.3]} 32... Kg6 {[%clk 0:00:27.9]} 33. Nxg3
{[%clk 0:00:37.8]} 33... hxg3 {[%clk 0:00:22.2]} 34. Bxd3+ {[%clk 0:00:37.9]}
34... Kg5 {[%clk 0:00:19.8]} 35. Rxf2 {[%clk 0:00:37.9]} 35... gxf2 {[%clk
0:00:20.7]} 36. Qe7+ {[%clk 0:00:37.4]} 36... Kf4 {[%clk 0:00:18.7]} 37. Qxd8
{[%clk 0:00:37.5]} 37... Ke3 {[%clk 0:00:19.6]} 38. Bf1 {[%clk 0:00:37.4]} 38...
Kd2 {[%clk 0:00:19.6]} 39. Qg5+ {[%clk 0:00:35.9]} 39... Ke1 {[%clk 0:00:20.5]}
40. Qg2 {[%clk 0:00:35.6]} 40... exd5 {[%clk 0:00:18.2]} 41. Kxh2 {[%clk
0:00:35.8]} 41... b5 {[%clk 0:00:17.5]} 42. Bxb5 {[%clk 0:00:35.5]} 42... f1=Q
{[%clk 0:00:16.5]} 43. Bxf1 {[%clk 0:00:33.3]} 43... Kd1 {[%clk 0:00:16.2]} 44.
Bd3 {[%clk 0:00:33.5]} 44... Kc1 {[%clk 0:00:17.1]} 45. Qc2# {[%clk 0:00:33.2]}
1-0

[Event "*** Titled Tuesday Blitz"]
[Site "Chess.com"]
[Date "2020.05.26"]
[Round "2"]
[White "aakankshachess"]
[Black "Aygehovit1992"]
[Result "0-1"]
[WhiteElo "2458"]
[BlackElo "2687"]
[TimeControl "180+1"]
[EndTime "10:18:12 PDT"]
[Termination "Aygehovit1992 won by resignation"]

1. e4 {[%clk 0:03:00.9]} 1... d6 {[%clk 0:02:56.6]} 2. d4 {[%clk 0:03:00.2]}
2... Nf6 {[%clk 0:02:54.1]} 3. Nc3 {[%clk 0:02:59.9]} 3... g6 {[%clk 0:02:54.2]}
4. Be3 {[%clk 0:02:57.5]} 4... c6 {[%clk 0:02:53.8]} 5. Bd3 {[%clk 0:02:55.4]}
5... Bg7 {[%clk 0:02:52.7]} 6. h3 {[%clk 0:02:53.2]} 6... O-O {[%clk 0:02:51.9]}
7. f4 {[%clk 0:02:53.2]} 7... b5 {[%clk 0:02:44.8]} 8. e5 {[%clk 0:02:51.5]}
8... Nd5 {[%clk 0:02:41.2]} 9. Nxd5 {[%clk 0:02:50.4]} 9... cxd5 {[%clk
0:02:42.1]} 10. Nf3 {[%clk 0:02:45.1]} 10... Nc6 {[%clk 0:02:40.7]} 11. O-O
{[%clk 0:02:42.7]} 11... Rb8 {[%clk 0:02:40.1]} 12. c3 {[%clk 0:02:41.9]} 12...
b4 {[%clk 0:02:39.6]} 13. c4 {[%clk 0:02:32.1]} 13... dxc4 {[%clk 0:02:36.8]}
14. Bxc4 {[%clk 0:02:31.6]} 14... d5 {[%clk 0:02:37.3]} 15. Bd3 {[%clk
0:02:29.1]} 15... Qa5 {[%clk 0:02:35.3]} 16. Rc1 {[%clk 0:02:26.5]} 16... Bd7
{[%clk 0:02:32]} 17. Qb3 {[%clk 0:02:16.1]} 17... e6 {[%clk 0:02:31.4]} 18. Qc2
{[%clk 0:02:00.7]} 18... Rfc8 {[%clk 0:02:29.8]} 19. Qf2 {[%clk 0:01:49.1]}
19... Qxa2 {[%clk 0:02:14.5]} 20. Ra1 {[%clk 0:01:38.5]} 20... Qb3 {[%clk
0:02:14.3]} 21. Ba6 {[%clk 0:01:32.8]} 21... Rb6 {[%clk 0:01:59.3]} 22. Nd2
{[%clk 0:01:17.1]} 22... Qxb2 {[%clk 0:01:57]} 23. Rfb1 {[%clk 0:01:14.9]} 23...
Qc2 {[%clk 0:01:55.6]} 24. Rc1 {[%clk 0:01:02.6]} 24... Rxa6 {[%clk 0:01:54.6]}
25. Rxc2 {[%clk 0:01:02.7]} 25... Rxa1+ {[%clk 0:01:54.4]} 26. Kh2 {[%clk
0:01:03.3]} 26... Ra3 {[%clk 0:01:49.7]} 27. Nb1 {[%clk 0:01:01.7]} 27... Rb3
{[%clk 0:01:38.3]} 28. Nd2 {[%clk 0:01:01.3]} 28... Rc3 {[%clk 0:01:37.2]} 29.
Rxc3 {[%clk 0:00:59.2]} 29... bxc3 {[%clk 0:01:38.1]} 30. Nb1 {[%clk 0:00:59.7]}
30... Nb4 {[%clk 0:01:30.4]} 31. Bc1 {[%clk 0:00:58.7]} 31... Nd3 {[%clk
0:01:27.8]} 32. Qc2 {[%clk 0:00:57.6]} 32... Nxc1 {[%clk 0:01:27.9]} 33. Qxc1
{[%clk 0:00:58.5]} 33... c2 {[%clk 0:01:28.5]} 34. Na3 {[%clk 0:00:57.2]} 34...
Ba4 {[%clk 0:01:28.5]} 35. Kg1 {[%clk 0:00:52.5]} 35... Bf8 {[%clk 0:01:27.8]}
36. Nxc2 {[%clk 0:00:50.1]} 36... Rxc2 {[%clk 0:01:28.7]} 37. Qb1 {[%clk
0:00:50.4]} 37... Re2 {[%clk 0:01:24.6]} 38. Qb8 {[%clk 0:00:47.1]} 38... Bc2
{[%clk 0:01:22.5]} 39. Qxa7 {[%clk 0:00:43.2]} 39... Be4 {[%clk 0:01:22.4]} 40.
g4 {[%clk 0:00:39.5]} 40... Rg2+ {[%clk 0:01:21.8]} 41. Kf1 {[%clk 0:00:39.7]}
41... Rg3 {[%clk 0:01:22.4]} 42. Qb8 {[%clk 0:00:39.2]} 42... Rf3+ {[%clk
0:01:19.6]} 43. Ke2 {[%clk 0:00:39.2]} 43... Rxf4 {[%clk 0:01:20.5]} 44. Qd8
{[%clk 0:00:38.9]} 44... Rf3 {[%clk 0:01:17.7]} 45. h4 {[%clk 0:00:39.2]} 45...
Rf4 {[%clk 0:01:14.5]} 46. h5 {[%clk 0:00:35.9]} 46... Rxg4 {[%clk 0:01:12.4]}
47. hxg6 {[%clk 0:00:34.1]} 47... hxg6 {[%clk 0:01:12.3]} 48. Kf2 {[%clk
0:00:34.2]} 48... Bf5 {[%clk 0:01:12.5]} 49. Ke3 {[%clk 0:00:32.5]} 49... Re4+
{[%clk 0:01:12.6]} 50. Kf3 {[%clk 0:00:32.1]} 50... Rxd4 {[%clk 0:01:12]} 51.
Kf2 {[%clk 0:00:32.2]} 51... Re4 {[%clk 0:01:12]} 52. Qb8 {[%clk 0:00:31.3]}
52... d4 {[%clk 0:01:11.8]} 53. Kf3 {[%clk 0:00:30.2]} 53... d3 {[%clk
0:01:12.2]} 54. Qd8 {[%clk 0:00:27.6]} 54... Re2 {[%clk 0:01:10.7]} 55. Qd4
{[%clk 0:00:20.1]} 55... Rc2 {[%clk 0:01:09.9]} 56. Ke3 {[%clk 0:00:19.6]} 56...
d2 {[%clk 0:01:09.8]} 57. Ke2 {[%clk 0:00:18.7]} 57... Bh6 {[%clk 0:01:02]} 58.
Qd8+ {[%clk 0:00:17.4]} 58... Kh7 {[%clk 0:01:02.1]} 59. Qe8 {[%clk 0:00:16.2]}
59... Bg4+ {[%clk 0:01:01.9]} 60. Kf2 {[%clk 0:00:15.6]} 60... d1=Q+ {[%clk
0:01:02.1]} 0-1

[Event "*** Titled Tuesday Blitz"]
[Site "Chess.com"]
[Date "2020.05.26"]
[Round "2"]
[White "sotochess"]
[Black "adiosabu"]
[Result "1-0"]
[WhiteElo "2214"]
[BlackElo "2599"]
[TimeControl "180+1"]
[EndTime "10:18:12 PDT"]
[Termination "sotochess won by resignation"]

1. e4 {[%clk 0:03:00]} 1... c5 {[%clk 0:02:59.4]} 2. Nf3 {[%clk 0:02:59.7]} 2...
Nc6 {[%clk 0:02:58.9]} 3. d4 {[%clk 0:02:58.5]} 3... cxd4 {[%clk 0:02:59.4]} 4.
Nxd4 {[%clk 0:02:58.4]} 4... e5 {[%clk 0:02:59.9]} 5. Nb5 {[%clk 0:02:56.4]}
5... a6 {[%clk 0:03:00.5]} 6. Nd6+ {[%clk 0:02:55.8]} 6... Bxd6 {[%clk
0:03:00.6]} 7. Qxd6 {[%clk 0:02:56.3]} 7... Qe7 {[%clk 0:03:01.3]} 8. Qd1 {[%clk
0:02:51.1]} 8... Nf6 {[%clk 0:03:00.5]} 9. Nc3 {[%clk 0:02:50.7]} 9... d6 {[%clk
0:03:00]} 10. Bg5 {[%clk 0:02:49.7]} 10... Be6 {[%clk 0:03:00.5]} 11. Be2 {[%clk
0:02:46.3]} 11... O-O {[%clk 0:02:57.5]} 12. O-O {[%clk 0:02:46]} 12... Rfd8
{[%clk 0:02:47.1]} 13. Re1 {[%clk 0:02:45.3]} 13... h6 {[%clk 0:02:45.3]} 14.
Bh4 {[%clk 0:02:45]} 14... Rac8 {[%clk 0:02:35]} 15. a3 {[%clk 0:02:36.1]} 15...
Nd4 {[%clk 0:02:30.7]} 16. Bd3 {[%clk 0:02:35.8]} 16... g5 {[%clk 0:02:26.7]}
17. Bg3 {[%clk 0:02:35.1]} 17... Qc7 {[%clk 0:02:24.2]} 18. h4 {[%clk
0:02:33.3]} 18... Kg7 {[%clk 0:02:20.3]} 19. hxg5 {[%clk 0:02:31.6]} 19... hxg5
{[%clk 0:02:20]} 20. Qd2 {[%clk 0:02:31.4]} 20... Nh7 {[%clk 0:02:18.9]} 21.
Rac1 {[%clk 0:02:22.9]} 21... f6 {[%clk 0:02:04.2]} 22. f3 {[%clk 0:02:18.6]}
22... Rh8 {[%clk 0:02:01.5]} 23. Bf2 {[%clk 0:02:18.1]} 23... Nc6 {[%clk
0:01:55]} 24. Nd5 {[%clk 0:02:16.6]} 24... Bxd5 {[%clk 0:01:54.6]} 25. exd5
{[%clk 0:02:16.6]} 25... Ne7 {[%clk 0:01:55.2]} 26. c4 {[%clk 0:02:16.7]} 26...
b6 {[%clk 0:01:54.7]} 27. b4 {[%clk 0:02:16.2]} 27... Nf8 {[%clk 0:01:49.9]} 28.
c5 {[%clk 0:02:14.5]} 28... bxc5 {[%clk 0:01:48.4]} 29. bxc5 {[%clk 0:02:12.9]}
29... dxc5 {[%clk 0:01:47.6]} 30. Bxa6 {[%clk 0:02:12.1]} 30... Rd8 {[%clk
0:01:39.8]} 31. Rxc5 {[%clk 0:02:11.3]} 31... Qd6 {[%clk 0:01:34.9]} 32. Bb5
{[%clk 0:01:58.4]} 32... Nfg6 {[%clk 0:01:27.5]} 33. Bd3 {[%clk 0:01:45.9]}
33... Nf4 {[%clk 0:01:22.8]} 34. Rec1 {[%clk 0:01:40.7]} 34... Rd7 {[%clk
0:00:43.8]} 35. Bb5 {[%clk 0:01:39.8]} 35... Rb7 {[%clk 0:00:40]} 36. a4 {[%clk
0:01:39.6]} 36... e4 {[%clk 0:00:36.2]} 37. fxe4 {[%clk 0:01:20.6]} 37... Ne6
{[%clk 0:00:35.8]} 38. e5 {[%clk 0:01:10.1]} 38... Qxe5 {[%clk 0:00:29.9]} 39.
dxe6 {[%clk 0:01:08.9]} 39... Qh2+ {[%clk 0:00:29.3]} 40. Kf1 {[%clk 0:01:08.8]}
40... Ng6 {[%clk 0:00:28.6]} 41. Re1 {[%clk 0:01:01.7]} 41... Nf4 {[%clk
0:00:19.8]} 42. Bg1 {[%clk 0:01:01.6]} 42... Qg3 {[%clk 0:00:17.6]} 43. Re3
{[%clk 0:00:57.7]} 43... Qg4 {[%clk 0:00:15.9]} 44. e7 {[%clk 0:00:57.1]} 44...
Rh1 {[%clk 0:00:14.6]} 45. e8=N+ {[%clk 0:00:53.5]} 45... Kh6 {[%clk 0:00:12.7]}
46. Nxf6 {[%clk 0:00:48.3]} 46... Qh4 {[%clk 0:00:09.3]} 47. Rf3 {[%clk
0:00:38.3]} 47... Re7 {[%clk 0:00:05.4]} 48. Ng8+ {[%clk 0:00:33.8]} 48... Kg7
{[%clk 0:00:05.1]} 49. Nxe7 {[%clk 0:00:33.5]} 1-0